bitfinex/quotes_ETHUSD_20250908
["timestamp","ask_amount","ask_price","bid_price","bid_amount"]
[1757343723184,2.90199591,4344.9,4344.8,9.29300191]
[1757343723369,2.58739591,4344.9,4344.8,9.59330191]
[1757343723687,2.58739591,4344.9,4344.8,10.38530191]
[1757343724049,3.81739591,4344.9,4344.8,10.38530191]
[1757343725509,5.04739591,4344.9,4344.8,10.38530191]
[1757343726706,6.17739591,4344.9,4344.8,10.38530191]
[1757343727373,6.17739591,4344.9,4344.8,10.08500191]
[1757343727569,6.49199591,4344.9,4344.8,6.21000191]
[1757343727790,6.49199591,4344.9,4344.8,10.08400191]
[1757343728220,7.72199591,4344.9,4344.8,10.08400191]
[1757343729509,8.63739591,4344.9,4344.8,10.08400191]
[1757343729711,8.63739591,4344.9,4344.8,10.38430191]
[1757343730077,8.63739591,4344.9,4344.8,11.60500586]
[1757343730613,8.95199591,4344.9,4344.8,11.30470586]
[1757343730801,8.95199591,4344.9,4344.8,10.08400191]
[1757343731005,10.18199591,4344.9,4344.8,10.08400191]
[1757343732410,11.41199591,4344.9,4344.8,10.08400191]
[1757343732613,14.26779591,4344.9,4344.8,3.1164]
[1757343732782,14.26779591,4344.9,4344.8,6.9904]
[1757343733439,14.26779591,4344.9,4344.8,9.29200191]
[1757343733738,12.32739591,4344.9,4344.8,9.59230191]
[1757343734049,12.32739591,4344.9,4344.8,10.38430191]
[1757343734399,12.32839591,4344.9,4344.8,10.38430191]
[1757343734738,12.32839591,4344.9,4344.8,11.60500586]
[1757343734941,13.55839591,4344.9,4344.8,10.38430191]
[1757343735098,13.55839591,4344.9,4344.8,13.95460586]
[1757343735302,13.55839591,4344.9,4344.8,14.42870586]
[1757343735524,13.55839591,4344.9,4344.8,43.20800191]
[1757343735902,10.37377667,4344.9,4344.8,43.20800191]
[1757343736115,1.23,4345.3,4345.2,6.09339003]
[1757343736314,1.23,4345.3,4345.2,11.73339003]
[1757343736514,1.23,4345.3,4345.2,12.14809003]
[1757343736739,1.23,4345.3,4345.2,14.97179003]
[1757343737047,1.23,4345.3,4345.2,45.66187115]
[1757343737909,2.46,4345.3,4345.2,45.66187115]
[1757343739443,3.69,4345.3,4345.2,45.66187115]
[1757343739660,0.001,4345.4,4345.2,45.66187115]
[1757343739814,25.8552,4345.8,4345.7,6.09312525]
[1757343740011,25.8552,4345.8,4345.7,43.09112525]
[1757343740209,25.8552,4345.8,4345.7,43.20552525]
[1757343740414,25.8544,4345.8,4345.7,43.89550479]
[1757343740834,27.0844,4345.8,4345.7,7.19780479]
[1757343741037,30.2548,4345.8,4345.7,9.28952525]
[1757343741238,30.2548,4345.8,4345.7,4.33644641]
[1757343741456,34.82378026,4345.8,4345.7,0.1144]
[1757343741611,34.82378026,4345.8,4345.3,5.669]
[1757343741612,0.1144,4345.7,4345.3,5.669]
[1757343741812,2.8558,4345.6,4345.4,3.874]
[1757343742113,3.1704,4345.5,4345.3,5.669]
[1757343742321,5.15708411,4345.4,4345.3,0.15]
[1757343742519,6.20037348,4345.4,4345.3,4.024]
[1757343742748,6.20037348,4345.4,4345.2,1.766]
[1757343742749,2.30133707,4345.3,4345.2,1.766]
[1757343742937,2.74663707,4345.3,4345.2,3.875]
[1757343743137,3.06123707,4345.3,4345.2,3.875]
[1757343743349,5.47173707,4345.3,4345.2,3.875]
[1757343743561,6.49636581,4345.3,4345.2,3.875]
[1757343744049,3.1704,4345.3,4345.2,3.875]
[1757343744617,0.3146,4345.3,4345.2,3.875]
[1757343744848,4.3464,4345.3,4345.2,3.9894]
[1757343745820,1.5446,4345.3,4345.2,3.9894]
[1757343746151,2.0109,4345.3,4345.2,3.9894]
[1757343746331,2.7746,4345.3,4345.2,3.9894]
[1757343747118,2.7746,4345.3,4345.2,6.29079003]
[1757343747326,2.46,4345.3,4345.2,6.60449003]
[1757343747835,3.69,4345.3,4345.2,9.60449003]
[1757343749130,4.92,4345.3,4345.2,9.60449003]
[1757343750420,6.15,4345.3,4345.2,9.60449003]
[1757343750825,6.4437,4345.3,4345.2,6.9894]
[1757343751139,9.1455,4345.3,4345.2,3.1144]
[1757343751455,9.1455,4345.3,4345.2,6.9884]
[1757343751833,10.3755,4345.3,4345.2,6.9884]
[1757343752245,13.59645751,4345.3,4345.2,0.1144]
[1757343752560,13.59645751,4345.3,4345.2,3.874]
[1757343752764,11.29512044,4345.3,4345.2,3.874]
[1757343752943,10.3755,4345.3,4345.2,3.874]
[1757343753434,11.1392,4345.3,4345.2,3.874]
[1757343753623,8.8037,4345.3,4345.2,6.17539003]
[1757343753825,8.8037,4345.3,4345.2,6.874]
[1757343754032,8.8047,4345.3,4345.2,6.874]
[1757343754640,8.8047,4345.3,4345.2,9.17539003]
[1757343754826,10.0347,4345.3,4345.2,9.17539003]
[1757343755027,9.741,4345.3,4345.2,9.17539003]
[1757343755532,9.741,4345.3,4344.8,0.002]
[1757343755533,2.3014317,4345.2,4344.8,0.002]
[1757343755733,3.93822487,4345.2,4344.9,3.874]
[1757343755933,9.741,4345.3,4345.1,0.3137]
[1757343756189,9.741,4345.3,4345.2,10.08279003]
[1757343756468,9.741,4345.3,4345.2,10.72839003]
[1757343756639,9.741,4345.3,4345.2,13.18849003]
[1757343757159,1.23,4345.4,4345.3,6.09333707]
[1757343757361,1.43,4345.6,4345.5,6.09323115]
[1757343757561,27.0844,4345.8,4345.6,6.0931782]
[1757343757749,27.0844,4345.8,4345.7,43.07782525]
[1757343758133,27.0844,4345.8,4345.7,44.70870903]
[1757343758655,27.0844,4345.8,4345.7,43.07782525]
[1757343758832,28.3144,4345.8,4345.7,43.07782525]
[1757343760061,28.3144,4345.8,4345.7,13.07782525]
[1757343760259,29.5444,4345.8,4345.7,36.40682525]
[1757343760448,29.5444,4345.8,4345.7,10.28382525]
[1757343761266,29.5444,4345.8,4345.7,7.28382525]
[1757343761440,29.8381,4345.8,4345.7,0.792]
[1757343761641,30.7744,4345.8,4345.7,10.28482525]
[1757343762228,30.7744,4345.8,4345.7,13.07682525]
[1757343762439,30.7744,4345.8,4345.7,43.07682525]
[1757343763036,32.0044,4345.8,4345.7,43.07682525]
[1757343764460,33.2344,4345.8,4345.7,43.07682525]
[1757343765848,34.4636,4345.8,4345.7,43.07682525]
[1757343767267,35.6936,4345.8,4345.7,43.07682525]
[1757343768734,36.9236,4345.8,4345.7,40.28482525]
[1757343769346,36.9236,4345.8,4345.7,40.28082525]
[1757343769550,37.2173,4345.8,4345.7,5.30112525]
[1757343769870,36.9236,4345.8,4345.7,10.28082525]
[1757343770071,38.1536,4345.8,4345.7,9.48882525]
[1757343770775,38.1536,4345.8,4345.7,10.28082525]
[1757343771343,39.3836,4345.8,4345.7,13.18722525]
[1757343771866,39.3836,4345.8,4345.7,43.18722525]
[1757343772832,40.6136,4345.8,4345.7,48.70522525]
[1757343773970,38.1536,4345.8,4345.7,48.70522525]
[1757343774157,0.0236,4345.8,4345.7,50.33610903]
[1757343774340,0.0236,4345.8,4345.7,45.91322525]
[1757343774742,0.0236,4345.8,4345.7,46.45932168]
[1757343774943,0.0236,4345.8,4345.7,50.50550546]
[1757343775362,1.2536,4345.8,4345.7,50.50550546]
[1757343776782,2.4836,4345.8,4345.7,50.50550546]
[1757343777080,0.001,4346.2,4346.0,3.0929664]
[1757343777247,0.001,4346.2,4346.0,39.9659664]
[1757343777576,0.001,4346.2,4346.0,40.2817664]
[1757343778146,1.231,4346.1,4346.0,40.2817664]
[1757343778776,1.231,4346.1,4346.0,40.7358664]
[1757343778946,1.231,4346.1,4346.0,43.1511664]
[1757343779146,1.231,4346.1,4346.0,39.2781664]
[1757343779389,1.231,4346.1,4346.0,40.2817664]
[1757343779583,2.461,4346.1,4346.0,40.7358664]
[1757343779791,2.461,4346.1,4346.0,43.1511664]
[1757343780684,0.001,4346.5,4346.4,6.09275464]
[1757343780873,0.001,4346.5,4346.4,41.73075464]
[1757343781062,0.001,4346.5,4346.4,42.04655464]
[1757343781379,0.001,4346.5,4346.4,42.13853562]
[1757343782329,1.231,4346.5,4346.4,42.13853562]
[1757343782919,1.231,4346.5,4346.4,41.82173562]
[1757343782920,4.3908,4346.5,4346.4,41.82173562]
[1757343783394,4.3908,4346.5,4346.4,37.85775464]
[1757343783711,6.06248,4346.5,4346.4,5.637]
[1757343784072,6.06248,4346.5,4346.4,8.637]
[1757343784405,5.6208,4346.5,4346.4,10.93775464]
[1757343784607,5.6208,4346.5,4346.4,11.72975464]
[1757343784807,2.461,4346.5,4346.4,11.72975464]
[1757343785007,3.691,4346.5,4346.4,11.72975464]
[1757343785214,4.0027,4346.5,4346.4,11.72975464]
[1757343785408,3.691,4346.5,4346.4,11.72975464]
[1757343785811,3.691,4346.5,4346.4,42.04555464]
[1757343786389,4.921,4346.5,4346.4,42.04555464]
[1757343786981,4.921,4346.5,4346.4,42.15995464]
[1757343788010,6.151,4346.5,4346.4,12.15995464]
[1757343788516,6.151,4346.5,4346.4,42.15995464]
[1757343788876,2.4085,4347.7,4347.5,6.09217251]
[1757343789073,0.4646,4347.8,4347.5,17.36157251]
[1757343789074,0.025,4347.8,4347.5,17.36157251]
[1757343789331,0.7515,4347.6,4347.5,18.99303561]
[1757343789515,1.5419,4347.6,4347.5,19.10777034]
[1757343790315,1.2302,4347.6,4347.5,17.79210724]
[1757343790887,2.4602,4347.6,4347.5,49.42357034]
[1757343791078,2.4602,4347.6,4347.5,47.79210724]
[1757343791280,2.4594,4347.6,4347.5,49.42160825]
[1757343791508,2.4594,4347.6,4347.5,47.79210724]
[1757343791912,2.4594,4347.6,4347.5,50.20740724]
[1757343792112,2.4594,4347.6,4347.5,50.66150724]
[1757343792410,3.6894,4347.6,4347.5,50.66150724]
[1757343792811,1.31204772,4347.6,4347.5,50.66150724]
[1757343793638,0.025,4347.8,4347.7,3.0920667]
[1757343793783,0.025,4347.8,4347.7,39.98706736]
[1757343793983,0.001,4348.1,4348.0,3.091908]
[1757343794215,0.025,4348.8,4348.3,3.792]
[1757343794395,0.025,4348.8,4348.4,41.84309644]
[1757343794727,0.025,4348.8,4348.4,42.15889644]
[1757343794884,1.231,4348.5,4348.4,42.15889644]
[1757343795477,0.78469296,4348.5,4348.4,42.15889644]
[1757343795678,0.025,4348.8,4348.7,2.29953779]
[1757343795879,0.025,4348.8,4348.7,40.10093316]
[1757343796207,0.025,4348.8,4348.7,40.39373779]
[1757343796428,0.80869296,4348.8,4348.7,40.39373779]
[1757343796580,0.49518435,4348.8,4348.7,40.39373779]
[1757343796892,0.47018436,4348.8,4348.7,40.07793779]
[1757343797382,0.47018436,4348.8,4348.7,40.39373779]
[1757343797926,1.70018436,4348.8,4348.7,40.07793779]
[1757343798556,1.70018436,4348.8,4348.7,40.39373779]
[1757343798898,1.70018436,4348.8,4348.7,43.26313779]
[1757343799185,2.4085,4350.2,4349.7,6.09100912]
[1757343799413,0.4396,4350.1,4349.7,17.24200912]
[1757343799616,3.1848,4349.8,4349.7,17.24500912]
[1757343800432,4.4148,4349.8,4349.7,17.24500912]
[1757343800883,1.5667,4349.8,4349.7,47.24500912]
[1757343801107,1.255,4349.8,4349.7,47.56080912]
[1757343801730,2.7967,4349.8,4349.7,47.24500912]
[1757343802417,2.485,4349.8,4349.7,47.56080912]
[1757343802839,1.185,4349.8,4349.7,47.56080912]
[1757343803147,2.2216669,4349.8,4349.7,50.43020912]
[1757343803307,2.2216669,4349.8,4349.7,49.97610912]
[1757343803509,1e-08,4349.9,4349.8,6.09095627]
[1757343803820,1e-08,4349.9,4349.8,38.81765627]
[1757343804142,1e-08,4349.9,4349.8,39.10905627]
[1757343805722,1e-08,4349.9,4349.8,39.28193811]
[1757343809037,1e-08,4349.9,4349.8,36.55523811]
[1757343809236,1e-08,4349.9,4349.8,40.54063811]
[1757343810158,1.23000001,4349.9,4349.8,40.54063811]
[1757343810678,0.025,4350.8,4350.6,0.792]
[1757343810826,0.025,4350.8,4350.7,41.7244807]
[1757343811014,0.025,4350.8,4350.7,41.8378807]
[1757343811415,1.255,4350.8,4350.7,41.8378807]
[1757343812916,2.486,4350.8,4350.7,41.8378807]
[1757343813354,2.7948,4350.8,4350.7,41.8378807]
[1757343814150,2.486,4350.8,4350.7,42.1292807]
[1757343814353,0.02,4350.9,4350.8,6.09042787]
[1757343814672,2.4664,4351.6,4351.5,6.09005814]
[1757343814885,2.7752,4351.6,4351.5,47.34945814]
[1757343815171,0.3088,4351.6,4351.5,47.23505814]
[1757343815376,0.3088,4351.6,4351.5,47.34945814]
[1757343815751,1.5388,4351.6,4351.5,47.34945814]
[1757343815952,1.9689,4351.6,4351.5,47.34945814]
[1757343816177,4.4353,4351.6,4351.5,47.34945814]
[1757343816378,4.4353,4351.6,4351.5,43.48045814]
[1757343816595,4.4345,4351.6,4351.5,47.46645045]
[1757343816779,4.4345,4351.6,4351.5,47.34945814]
[1757343817270,5.6645,4351.6,4351.5,47.34945814]
[1757343817654,2.768,4351.6,4351.5,47.34945814]
[1757343818596,3.998,4351.6,4351.5,47.34945814]
[1757343819959,5.228,4351.6,4351.5,47.34945814]
[1757343820190,4.92,4351.6,4351.5,47.64085814]
[1757343820987,5.2288,4351.6,4351.5,47.34945814]
[1757343821187,6.8889,4351.6,4351.5,47.34945814]
[1757343821501,6.4588,4351.6,4351.5,47.34945814]
[1757343821876,6.15,4351.6,4351.5,47.34945814]
[1757343822068,0.02,4351.9,4351.8,0.792]
[1757343822267,0.02,4351.9,4351.8,39.95789971]
[1757343822467,0.02,4351.9,4351.8,40.24929971]
[1757343822684,1.19000003,4351.9,4351.8,40.24929971]
[1757343823281,1.19000003,4351.9,4351.8,36.08989971]
[1757343823590,4.39530003,4351.9,4351.8,36.08989971]
[1757343823808,4.39530003,4351.9,4351.8,39.16589971]
[1757343824006,5.62530003,4351.9,4351.8,39.16589971]
[1757343824394,5.02657267,4351.9,4351.8,39.95789971]
[1757343824920,4.906734,4351.9,4351.8,39.95789971]
[1757343825091,2.440334,4351.9,4351.8,39.95789971]
[1757343825293,2.010234,4351.9,4351.8,39.95789971]
[1757343825627,3.240234,4351.9,4351.8,39.95789971]
[1757343827035,4.470234,4351.9,4351.8,39.95789971]
[1757343827520,4.161434,4351.9,4351.8,40.24929971]
[1757343828419,5.391434,4351.9,4351.8,39.95789971]
[1757343828620,5.700234,4351.9,4351.8,39.95789971]
[1757343828828,6.130334,4351.9,4351.8,39.95789971]
[1757343829004,5.700234,4351.9,4351.8,36.08989971]
[1757343829205,5.391434,4351.9,4351.8,39.95789971]
[1757343829537,1.51464734,4351.9,4351.8,40.24929971]
[1757343830410,1.027,4352.0,4351.9,36.08984691]
[1757343830606,0.4301,4352.7,4352.4,0.792]
[1757343830899,2.4914,4352.8,4352.7,2.29742458]
[1757343831230,3.2303,4352.8,4352.7,9.95742458]
[1757343831437,2.8002,4352.8,4352.7,9.95742458]
[1757343831933,3.2303,4352.8,4352.7,9.95742458]
[1757343832230,2.8002,4352.8,4352.7,10.07182458]
[1757343832441,3.2313,4352.8,4352.7,10.07182458]
[1757343832634,1.5648,4352.8,4352.7,10.07182458]
[1757343833141,4.4613,4352.8,4352.7,10.07182458]
[1757343833443,4.4613,4352.8,4352.7,10.07082458]
[1757343833929,5.6913,4352.8,4352.7,10.07082458]
[1757343834634,2.486,4352.8,4352.7,40.36492458]
[1757343835312,3.716,4352.8,4352.7,40.36492458]
[1757343835720,3.716,4352.8,4352.7,41.05382671]
[1757343835898,3.716,4352.8,4352.7,40.75972671]
[1757343836098,4.0072,4352.8,4352.7,40.75972671]
[1757343836304,4.0072,4352.8,4352.7,40.07082458]
[1757343836513,6.9166,4352.8,4352.7,40.07082458]
[1757343836719,8.1466,4352.8,4352.7,40.07082458]
[1757343837023,5.6701,4352.8,4352.7,40.07082458]
[1757343837409,5.6701,4352.8,4352.7,36.20382458]
[1757343837611,5.2372,4352.8,4352.7,40.07082458]
[1757343837809,4.946,4352.8,4352.7,40.07082458]
[1757343838134,6.4672,4352.8,4352.7,36.20382458]
[1757343838333,9.3766,4352.8,4352.7,36.20382458]
[1757343838532,9.96023337,4352.8,4352.7,2.41182458]
[1757343838753,9.96023337,4352.8,4352.7,3.1144]
[1757343838958,9.96023337,4352.8,4352.7,3.9814]
[1757343839363,11.19023337,4352.8,4352.7,9.27882458]
[1757343840035,11.19023337,4352.8,4352.7,6.9814]
[1757343840237,11.19023337,4352.8,4352.7,9.27882458]
[1757343840867,12.42023337,4352.8,4352.7,9.27882458]
[1757343841068,12.42023337,4352.8,4352.7,3.1144]
[1757343841242,12.42023337,4352.8,4352.7,9.27882458]
[1757343841443,12.42023337,4352.8,4352.7,5.41182458]
[1757343841768,12.42023337,4352.8,4352.5,1.763]
[1757343842069,2.29749315,4352.6,4351.8,2.29788303]
[1757343842271,2.29749315,4352.6,4352.0,0.1144]
[1757343842272,2.9094,4352.5,4352.0,0.1144]
[1757343842679,0.2912,4352.1,4352.0,2.41219411]
[1757343843007,3.2006,4352.1,4352.0,3.9814]
[1757343843204,3.2006,4352.1,4352.0,6.27919411]
[1757343843361,0.7241,4352.1,4352.0,10.07119411]
[1757343843555,1.23,4352.1,4352.0,40.36529411]
[1757343843989,1.23,4352.1,4352.0,43.22379411]
[1757343844695,1.23,4352.1,4352.0,40.79349411]
[1757343844895,1.23,4352.1,4352.0,40.36529411]
[1757343845097,1.23,4352.1,4352.0,40.07119411]
[1757343845098,2.46,4352.1,4352.0,40.07119411]
[1757343845709,2.46,4352.1,4352.0,43.22379411]
[1757343846469,3.69,4352.1,4352.0,43.22379411]
[1757343846800,3.69,4352.1,4352.0,40.36529411]
[1757343847903,4.92,4352.1,4352.0,40.79349411]
[1757343848218,4.92,4352.1,4352.0,40.36529411]
[1757343848732,4.92,4352.1,4352.0,39.35679411]
[1757343848897,4.92,4352.1,4352.0,43.22579411]
[1757343849380,6.15,4352.1,4352.0,43.22579411]
[1757343849968,3.19941034,4352.1,4352.0,44.73224335]
[1757343850164,9.866,4352.8,4352.0,43.22579411]
[1757343850365,9.866,4352.8,4352.7,6.08942458]
[1757343850566,10.1572,4352.8,4352.7,41.72042458]
[1757343850802,11.096,4352.8,4352.7,41.72042458]
[1757343851168,11.096,4352.8,4352.7,42.01452458]
[1757343851392,11.096,4352.8,4352.7,41.72042458]
[1757343851597,11.096,4352.8,4352.7,42.01452458]
[1757343851791,11.096,4352.8,4352.7,38.14652458]
[1757343851992,11.096,4352.8,4352.7,42.01552458]
[1757343852194,12.326,4352.8,4352.7,42.01552458]
[1757343852599,24.0939847,4353.0,4352.9,6.08931902]
[1757343852803,7.08750064,4353.0,4352.9,39.95831902]
[1757343853001,0.025,4353.8,4353.7,2.29689689]
[1757343853207,0.025,4353.8,4353.7,14.23089689]
[1757343853404,0.3162,4353.8,4353.7,17.23089689]
[1757343853570,0.7491,4353.8,4353.7,17.23089689]
[1757343854201,0.3162,4353.8,4353.7,17.23089689]
[1757343854407,0.025,4353.8,4353.7,17.52499689]
[1757343854774,0.3162,4353.8,4353.7,17.23089689]
[1757343854975,1.255,4353.8,4353.7,17.23089689]
[1757343855171,0.02,4353.9,4353.8,36.08884413]
[1757343855376,0.02,4353.9,4353.8,39.24144413]
[1757343855713,0.02,4353.9,4353.8,36.38294413]
[1757343855880,0.02,4353.9,4353.8,39.95984413]
[1757343856209,0.3112,4353.9,4353.8,6.08884413]
[1757343856380,4.4506,4353.9,4353.8,9.95984413]
[1757343856708,1.9741,4353.9,4353.8,9.95984413]
[1757343856908,1.9741,4353.9,4353.8,40.68214413]
[1757343856909,1.25,4353.9,4353.8,40.68214413]
[1757343857212,1.25,4353.9,4353.8,43.11244413]
[1757343857374,1.25,4353.9,4353.8,36.38294413]
[1757343857572,1.25,4353.9,4353.8,40.25794413]
[1757343857774,2.48,4353.9,4353.8,10.25794413]
[1757343857975,2.48,4353.9,4353.8,40.25694413]
[1757343858410,5.2477,4353.9,4353.8,36.08884413]
[1757343858615,5.6806,4353.9,4353.8,39.96284413]
[1757343858818,5.6806,4353.9,4353.8,3.0]
[1757343859018,6.24866,4353.9,4353.8,6.875]
[1757343859223,6.9106,4353.9,4353.8,6.875]
[1757343859429,6.9106,4353.9,4353.8,3.0]
[1757343859724,2.29684413,4353.8,4353.7,7.272]
[1757343859909,2.9094,4353.8,4353.7,11.148]
[1757343860220,3.2006,4353.8,4353.7,11.148]
[1757343860622,4.4306,4353.8,4353.7,11.148]
[1757343860808,4.4306,4353.8,4353.7,14.148]
[1757343861218,5.24466,4353.8,4353.7,14.148]
[1757343861999,6.47466,4353.8,4353.7,14.148]
[1757343862207,5.2277,4353.8,4353.7,16.44489689]
[1757343862427,2.46,4353.8,4353.7,17.23689689]
[1757343862832,2.7512,4353.8,4353.7,17.23689689]
[1757343863426,3.9812,4353.8,4353.7,17.23689689]
[1757343863791,6.7022,4353.8,4353.7,17.23689689]
[1757343864535,7.74342,4353.8,4353.7,14.148]
[1757343864897,8.97342,4353.8,4353.7,14.148]
[1757343865097,7.9322,4353.8,4353.7,14.148]
[1757343865807,7.9322,4353.8,4353.7,16.44489689]
[1757343865992,7.9322,4353.8,4353.7,14.148]
[1757343866196,9.1622,4353.8,4353.7,14.148]
[1757343866596,9.1622,4353.8,4353.7,7.272]
[1757343866805,10.44942,4353.8,4353.7,11.147]
[1757343867341,10.44942,4353.8,4353.7,7.272]
[1757343867641,7.3792,4353.8,4353.7,13.74899689]
[1757343867825,7.3792,4353.8,4353.7,16.74899689]
[1757343868028,10.4067,4353.8,4353.7,14.148]
[1757343868740,10.4067,4353.8,4353.7,7.272]
[1757343868958,14.11521413,4353.8,4353.7,11.155]
[1757343869115,13.04837,4353.8,4353.7,11.155]
[1757343869311,12.58007,4353.8,4353.7,11.155]
[1757343869647,8.6092,4353.8,4353.7,16.45189689]
[1757343869858,8.6092,4353.8,4353.7,16.75699689]
[1757343870111,8.6092,4353.8,4353.7,19.63219689]
[1757343870434,8.6092,4353.8,4353.7,20.53859689]
[1757343870646,8.60460636,4353.8,4353.7,20.10789689]
[1757343870868,9.83460636,4353.8,4353.7,20.53859689]
[1757343871841,9.83460636,4353.8,4353.7,17.66339689]
[1757343872167,11.06460636,4353.8,4353.7,13.78039689]
[1757343872326,11.06460636,4353.8,4353.7,17.66439689]
[1757343872639,11.06460636,4353.8,4353.7,13.78039689]
[1757343872840,11.06460636,4353.8,4353.7,17.66439689]
[1757343873472,12.29460636,4353.8,4353.7,17.66439689]
[1757343873760,12.29460636,4353.8,4353.7,12.68329689]
[1757343873761,12.60110636,4353.8,4353.7,12.68329689]
[1757343874073,12.29460636,4353.8,4353.7,16.87139689]
[1757343874423,12.29460636,4353.8,4353.7,17.66339689]
[1757343874922,13.52460636,4353.8,4353.7,17.66339689]
[1757343875177,13.52460636,4353.8,4353.7,18.09409689]
[1757343875324,13.52460636,4353.8,4353.7,20.53859689]
[1757343875519,13.52460636,4353.8,4353.7,17.66339689]
[1757343876408,15.06110636,4353.8,4353.7,17.35929689]
[1757343877234,15.06110636,4353.8,4353.7,16.56629689]
[1757343877745,15.98460636,4353.8,4353.7,16.87139689]
[1757343877952,15.98460636,4353.8,4353.7,17.66339689]
[1757343878147,15.98460636,4353.8,4353.7,20.53859689]
[1757343879037,17.21460636,4353.8,4353.7,20.53859689]
[1757343879435,17.21460636,4353.8,4353.7,50.53859689]
[1757343880448,18.44460636,4353.8,4353.7,50.53859689]
[1757343881763,19.67460636,4353.8,4353.7,50.53859689]
[1757343882151,3.711,4353.9,4353.8,6.08884413]
[1757343882465,3.711,4353.9,4353.8,38.96404413]
[1757343882672,3.711,4353.9,4353.8,39.26914413]
[1757343883166,4.941,4353.9,4353.8,39.26914413]
[1757343883833,4.941,4353.9,4353.8,36.82464413]
[1757343884484,4.941,4353.9,4353.8,43.14914413]
[1757343884780,6.171,4353.9,4353.8,43.14914413]
[1757343886100,6.171,4353.9,4353.8,40.27394413]
[1757343886402,7.401,4353.9,4353.8,10.27394413]
[1757343886687,7.401,4353.9,4353.8,42.71844413]
[1757343886852,7.401,4353.9,4353.8,43.14914413]
[1757343887386,7.401,4353.9,4353.8,40.70164413]
[1757343887718,7.401,4353.9,4353.8,43.14614413]
[1757343887897,8.631,4353.9,4353.8,40.27094413]
[1757343888192,8.631,4353.9,4353.8,40.70164413]
[1757343888396,8.631,4353.9,4353.8,36.82464413]
[1757343888551,8.631,4353.9,4353.8,43.14614413]
[1757343889252,9.861,4353.9,4353.8,49.75514413]
[1757343889672,0.00453833,4354.8,4354.7,2.29636943]
[1757343889985,0.00453833,4354.8,4354.7,40.93336943]
[1757343890184,0.00453833,4354.8,4354.7,41.04776943]
[1757343890488,1.54103833,4354.8,4354.7,41.04776943]
[1757343891072,1.23453833,4354.8,4354.7,41.35286943]
[1757343891887,2.46453833,4354.8,4354.7,41.35286943]
[1757343892288,2.46453833,4354.8,4354.7,41.04776943]
[1757343892676,2.46453833,4354.8,4354.7,41.83976943]
[1757343893384,3.69373833,4354.8,4354.7,42.14486943]
[1757343894658,3.54142221,4354.8,4354.7,44.91326943]
[1757343894852,2.10058012,4354.8,4354.7,44.91326943]
[1757343895084,2.10058012,4354.8,4354.7,45.60174628]
[1757343895332,2.10058012,4354.8,4354.7,47.62139888]
[1757343895508,2.10058012,4354.8,4354.7,43.74639888]
[1757343895705,4.23,4355.0,4354.8,36.0883167]
[1757343895923,4.23,4355.0,4354.9,39.96726397]
[1757343896145,1.2612587,4355.0,4354.9,43.14316397]
[1757343897333,2.4912587,4355.0,4354.9,43.14316397]
[1757343897496,2.46,4355.7,4355.0,3.792]
[1757343897693,1.018742,4356.8,4355.7,0.792]
[1757343897896,1.018742,4356.8,4356.7,4.0851]
[1757343898128,1.018742,4356.8,4356.7,47.4649]
[1757343898333,1.018742,4356.8,4356.7,48.64077328]
[1757343898531,2.248742,4356.8,4356.7,46.99182343]
[1757343899301,2.248742,4356.8,4356.7,49.87462343]
[1757343899532,2.248742,4356.8,4356.7,45.98562343]
[1757343899734,2.248742,4356.8,4356.7,49.87362343]
[1757343899942,3.478742,4356.8,4356.7,46.99082343]
[1757343900248,3.478742,4356.8,4356.7,43.10282343]
[1757343900552,3.478742,4356.8,4356.7,47.42832343]
[1757343900730,3.478742,4356.8,4356.7,49.87362343]
[1757343901036,3.478742,4356.8,4356.7,51.48699671]
[1757343901200,3.478742,4356.8,4356.7,49.87362343]
[1757343901402,4.708742,4356.8,4356.7,45.98562343]
[1757343901732,4.708742,4356.8,4356.7,49.43512343]
[1757343901932,4.35435041,4356.8,4356.7,49.87262343]
[1757343902132,4.18604362,4356.8,4356.7,50.37262343]
[1757343902332,2.63354813,4356.8,4356.7,50.37262343]
[1757343902501,2.56305668,4356.8,4356.7,50.37262343]
[1757343902704,3.79305668,4356.8,4356.7,50.37262343]
[1757343904116,5.02305668,4356.8,4356.7,46.48562343]
[1757343904405,5.02305668,4356.8,4356.7,47.48882343]
[1757343904599,5.02305668,4356.8,4356.7,50.48602343]
[1757343905334,1.24639974,4356.8,4356.7,46.60002343]
[1757343905538,0.58807127,4356.8,4356.7,50.48502343]
[1757343905704,0.003,4357.5,4357.4,2.29494652]
[1757343906040,0.003,4357.5,4357.4,41.73294652]
[1757343906337,0.2898,4357.5,4357.4,41.84634652]
[1757343906562,0.003,4357.5,4357.4,41.84634652]
[1757343906736,0.003,4357.5,4357.4,42.13944652]
[1757343906737,1.233,4357.5,4357.4,42.13944652]
[1757343907099,1.233,4357.5,4357.4,37.96234652]
[1757343907302,4.2511,4357.5,4357.4,41.85034652]
[1757343907937,1.233,4357.5,4357.4,41.85034652]
[1757343908234,2.463,4357.5,4357.4,42.14344652]
[1757343909048,2.463,4357.5,4357.4,41.85034652]
[1757343909225,2.463,4357.5,4357.4,37.96234652]
[1757343909541,2.463,4357.5,4357.4,41.85034652]
[1757343909748,3.693,4357.5,4357.4,41.85034652]
[1757343910102,3.9798,4357.5,4357.4,41.85034652]
[1757343910719,3.693,4357.5,4357.4,41.85034652]
[1757343911227,4.923,4357.5,4357.4,41.85034652]
[1757343911445,4.923,4357.5,4357.4,41.84734652]
[1757343911855,5.2098,4357.5,4357.4,41.84734652]
[1757343912062,4.923,4357.5,4357.4,41.84734652]
[1757343912532,6.153,4357.5,4357.4,41.84734652]
[1757343912733,1e-08,4358.2,4357.7,0.792]
[1757343913044,1.23,4359.6,4359.5,2.29384103]
[1757343913248,1.5168,4359.6,4359.5,7.95084103]
[1757343913758,1.5168,4359.6,4359.5,37.95084103]
[1757343913945,2.46,4359.6,4359.5,5.657]
[1757343914147,2.7468,4359.6,4359.5,1.761]